bitfinex/quotes_ETHUSD_20251125
["timestamp","ask_amount","ask_price","bid_price","bid_amount"]
[1764079549162,0.405504,2917.7,2917.0,3.42813097]
[1764079549461,0.795304,2917.7,2917.0,3.42813097]
[1764079550022,0.405504,2917.7,2917.1,0.1855]
[1764079550333,0.405504,2917.7,2917.2,3.4279446]
[1764079550542,0.219,2917.6,2917.2,3.4279446]
[1764079550853,0.219,2917.5,2917.1,0.1855]
[1764079551049,0.219,2917.5,2917.1,3.61354355]
[1764079551265,0.219,2917.5,2917.1,3.61353447]
[1764079551447,0.405504,2917.8,2917.1,0.1855]
[1764079551654,0.219,2917.7,2917.1,3.61354601]
[1764079551963,0.219,2917.7,2917.1,7.04160812]
[1764079552169,0.405504,2917.8,2917.1,7.04160812]
[1764079552394,0.3898,2918.5,2917.7,0.4718]
[1764079552662,0.53455573,2918.4,2917.7,0.4718]
[1764079552862,0.31561216,2918.3,2917.7,0.4718]
[1764079553022,0.219,2918.2,2917.8,0.4987]
[1764079553226,0.219,2918.1,2917.8,0.4987]
[1764079554132,0.3898,2918.8,2918.1,6.8537747]
[1764079554332,3.54978249,2918.9,2918.1,6.8537747]
[1764079554333,0.53469366,2918.7,2918.1,6.8537747]
[1764079554537,0.219,2918.6,2918.2,0.1855]
[1764079554729,0.1238,2918.9,2918.2,0.1855]
[1764079554951,0.219,2918.8,2918.2,0.6842]
[1764079555322,0.219,2918.8,2918.2,0.1855]
[1764079555557,0.3898,2919.3,2918.3,4.79913972]
[1764079555769,0.219,2919.2,2918.7,0.4718]
[1764079556261,0.219,2919.2,2918.5,6.85283536]
[1764079556425,3.64459746,2919.2,2918.5,6.85283536]
[1764079556627,0.405504,2919.3,2918.5,6.85283536]
[1764079556845,0.405504,2919.6,2918.6,0.4987]
[1764079557046,0.31563716,2919.5,2918.6,0.4987]
[1764079557254,0.53463716,2919.4,2918.6,0.4987]
[1764079557440,0.219,2919.4,2918.6,0.4987]
[1764079557635,0.219,2919.3,2918.5,3.42641768]
[1764079557933,0.6088,2919.3,2918.5,7.31183536]
[1764079558132,0.219,2919.2,2918.6,0.459]
[1764079558362,0.219,2919.1,2918.7,6.85236576]
[1764079558861,0.219,2919.1,2918.6,6.85257015]
[1764079559159,0.219,2919.0,2918.7,0.459]
[1764079559925,0.219,2919.0,2918.6,3.42626987]
[1764079560130,0.123,2918.9,2918.5,3.42636374]
[1764079560463,0.405504,2919.4,2918.4,0.459]
[1764079560673,0.53482394,2919.3,2918.3,7.406665]
[1764079560856,0.31582394,2919.2,2918.4,0.459]
[1764079561183,0.219,2919.1,2918.6,0.09436]
[1764079561325,0.219,2919.0,2918.6,0.09436]
[1764079561529,0.219,2919.0,2918.7,0.459]
[1764079561769,4.53963066,2919.7,2918.9,0.4561]
[1764079561971,0.53494744,2919.6,2918.9,0.4561]
[1764079562127,0.31594744,2919.5,2918.9,0.4561]
[1764079562334,0.405504,2919.3,2918.4,0.459]
[1764079562531,0.31660106,2919.2,2918.5,0.459]
[1764079562733,0.219,2919.1,2918.5,0.47862419]
[1764079563065,0.219,2919.1,2918.5,0.459]
[1764079563568,0.219,2919.1,2918.2,3.61222974]
[1764079563757,0.1594,2918.6,2918.2,3.61222974]
[1764079564064,0.219,2918.5,2918.2,3.61222974]
[1764079564360,0.219,2918.4,2918.2,7.03899966]
[1764079564562,0.219,2918.3,2918.2,4.07122974]
[1764079564865,0.219,2918.3,2918.2,3.42672974]
[1764079565090,0.3784,2918.3,2917.8,7.06372188]
[1764079565384,0.3784,2918.3,2917.8,7.0440794]
[1764079565763,0.3784,2918.3,2917.9,0.459]
[1764079565974,0.3784,2918.3,2917.8,7.0440794]
[1764079566300,0.3867,2918.7,2917.9,0.459]
[1764079566594,0.53591226,2918.6,2918.2,0.55046]
[1764079566803,0.219,2918.6,2918.2,0.4561]
[1764079567294,0.219,2918.6,2918.2,0.9151]
[1764079567661,0.123,2918.9,2918.2,0.9151]
[1764079567865,0.53590204,2918.8,2918.2,0.9151]
[1764079568082,0.31690204,2918.7,2918.2,0.9151]
[1764079568289,0.53590204,2918.6,2918.2,0.9151]
[1764079568459,0.219,2918.6,2918.3,6.853305]
[1764079568655,3.81451532,2919.3,2918.5,0.4561]
[1764079568857,1.81488845,2919.8,2918.5,0.4561]
[1764079568858,0.31689756,2919.2,2918.5,0.47572306]
[1764079569061,0.53589756,2919.1,2918.6,0.55336]
[1764079569294,3.8139277,2919.8,2918.6,0.55336]
[1764079569295,0.389,2919.8,2918.6,0.55336]
[1764079569591,0.53569627,2919.7,2919.0,0.4561]
[1764079569768,0.31669627,2919.6,2919.0,0.4561]
[1764079569971,0.53569627,2919.5,2919.0,0.4561]
[1764079570293,0.7296938,2919.7,2919.0,0.4561]
[1764079570294,0.117,2920.1,2919.1,0.74296]
[1764079570463,0.53563024,2920.0,2919.4,0.4561]
[1764079570664,0.31663024,2919.9,2919.4,0.4561]
[1764079570865,0.31663024,2919.8,2919.2,10.27678815]
[1764079571065,0.53563024,2919.7,2919.2,6.8511921]
[1764079571273,0.219,2919.7,2919.2,6.8511921]
[1764079571594,0.219,2919.6,2919.3,0.459]
[1764079571799,0.219,2919.6,2919.2,6.8511921]
[1764079572093,0.219,2919.5,2919.3,0.459]
[1764079572401,0.219,2919.5,2919.4,3.42536137]
[1764079572563,0.219,2919.5,2919.4,3.88146137]
[1764079573090,0.219,2919.6,2919.4,3.88146137]
[1764079573304,0.72899848,2920.3,2920.0,0.4561]
[1764079573507,0.123,2922.0,2920.4,0.72559411]
[1764079573663,0.31643507,2921.9,2921.2,4.49003972]
[1764079574002,0.31643507,2921.9,2920.6,0.4561]
[1764079574003,0.70565057,2921.7,2920.6,0.4561]
[1764079574212,0.31665057,2921.6,2920.6,0.459]
[1764079574513,0.219,2921.6,2921.0,0.72559411]
[1764079574709,0.17622107,2921.8,2920.7,6.8476735]
[1764079574889,0.219,2921.6,2920.8,0.459]
[1764079575066,0.49244405,2921.8,2920.8,0.459]
[1764079575067,0.219,2921.5,2920.8,0.459]
[1764079575265,0.39522107,2921.8,2920.8,5.48503383]
[1764079575791,0.219,2921.7,2920.9,0.459]
[1764079576005,0.17622107,2921.8,2921.1,0.09436]
[1764079576160,0.17622107,2921.8,2921.7,0.6457]
[1764079576364,0.17622107,2921.8,2921.7,4.52736488]
[1764079576598,0.17622107,2921.8,2921.7,4.06836488]
[1764079577060,0.17622107,2921.8,2921.6,3.42277727]
[1764079577406,0.17622107,2921.8,2921.7,0.4561]
[1764079577568,0.17622107,2921.8,2921.6,3.42277727]
[1764079577985,0.17622107,2921.8,2921.7,0.9151]
[1764079578189,0.17622107,2921.8,2921.7,1.00946]
[1764079578374,0.17622107,2921.8,2921.7,4.43212488]
[1764079580310,0.17622107,2921.8,2921.7,4.33776488]
[1764079580517,0.17622107,2921.8,2921.7,5.15771899]
[1764079581922,0.17622107,2921.8,2921.7,5.19101899]
[1764079583571,0.17622107,2921.8,2921.7,5.41001899]
[1764079584105,0.17622107,2921.8,2921.7,5.31565899]
[1764079584306,0.17542107,2921.8,2921.7,5.41001899]
[1764079584696,0.17542107,2921.8,2921.7,5.19101899]
[1764079585813,0.17542107,2921.8,2921.7,4.14825899]
[1764079586275,0.17542107,2921.8,2921.7,5.10595899]
[1764079586477,0.17542107,2921.8,2921.7,5.12549615]
[1764079586678,0.17542107,2921.8,2921.7,5.20031899]
[1764079587277,0.9105696,2924.3,2922.9,0.09436]
[1764079587481,0.9105696,2924.3,2922.0,6.421864]
[1764079587482,0.117,2924.4,2923.6,0.09436]
[1764079587685,0.6095,2924.4,2923.5,0.09436]
[1764079587926,0.6095,2924.4,2923.6,0.09436]
[1764079588089,0.123,2925.0,2923.4,0.4923]
[1764079588287,0.4925,2924.9,2923.8,0.09436]
[1764079588525,0.4925,2924.9,2923.9,10.2602688]
[1764079588818,0.4925,2925.4,2924.5,0.09436]
[1764079589021,0.4925,2925.4,2924.6,0.1916]
[1764079589223,0.4925,2925.9,2924.6,0.1916]
[1764079589608,0.22,2925.8,2924.6,0.1916]
[1764079589812,0.1754,2926.0,2924.8,0.81995411]
[1764079590120,0.1754,2926.0,2924.9,0.22]
[1764079590331,0.4925,2925.9,2924.6,0.1916]
[1764079590485,0.4925,2925.9,2924.7,6.8383082]
[1764079590985,0.98831746,2925.8,2924.3,0.1916]
[1764079591321,0.4925,2925.7,2924.5,0.72559411]
[1764079591623,0.405504,2925.5,2924.4,3.41950485]
[1764079591918,0.22,2925.6,2924.4,3.41950485]
[1764079591919,0.22,2925.6,2924.4,6.8390097]
[1764079592221,0.72559411,2925.9,2924.4,6.8390097]
[1764079592222,0.7125,2925.5,2924.4,6.8390097]
[1764079592423,0.44823319,2925.4,2924.4,0.72559411]
[1764079592718,3.4184528,2925.3,2924.4,4.14503135]
[1764079592887,0.4925,2925.4,2924.4,7.5645362]
[1764079593088,0.72559411,2925.7,2924.6,0.09436]
[1764079593282,0.22,2925.6,2924.6,0.09436]
[1764079593821,0.4925,2925.5,2924.4,7.5645362]
[1764079594022,0.7125,2925.5,2924.4,10.98404105]
[1764079594318,0.22,2925.4,2924.6,0.09436]
[1764079594493,1.21809411,2925.8,2924.6,0.09436]
[1764079594836,0.22,2925.7,2924.7,6.8383082]
[1764079595038,0.7125,2925.7,2924.7,3.4191541]
[1764079595227,0.7125,2925.7,2924.7,6.8383082]
[1764079595426,0.1754,2926.0,2924.8,0.72559411]
[1764079595427,0.6679,2926.0,2924.8,0.72559411]
[1764079595606,0.22,2925.9,2924.8,0.72559411]
[1764079595804,0.1754,2926.0,2924.8,0.81995411]
[1764079596006,0.3954,2926.0,2924.9,0.4923]
[1764079596223,0.53522189,2925.9,2924.8,0.72559411]
[1764079596436,0.405504,2925.8,2924.8,0.72559411]
[1764079596620,0.405504,2925.8,2924.6,4.14484683]
[1764079596923,0.4925,2925.9,2924.3,0.22]
[1764079596924,0.405504,2925.6,2924.3,0.72559411]
[1764079597108,0.405504,2925.4,2924.1,3.41983324]
[1764079597309,0.405504,2925.2,2924.1,3.41983324]
[1764079597521,0.04273358,2925.1,2924.1,3.41983324]
[1764079597718,0.04273358,2925.1,2924.0,0.72559411]
[1764079597719,0.405504,2925.0,2924.0,0.72559411]
[1764079597904,0.4925,2925.1,2923.7,3.42032356]
[1764079598128,0.22,2925.0,2923.8,0.4923]
[1764079598312,0.405504,2924.9,2923.8,1.21789411]
[1764079598508,1.021004,2924.9,2923.8,0.72559411]
[1764079598708,4.44002136,2924.9,2923.9,6.8401792]
[1764079598907,0.4925,2924.8,2923.9,3.4200896]
[1764079599107,0.405504,2924.7,2923.8,3.42016385]
[1764079599311,0.405504,2924.7,2923.9,0.72559411]
[1764079599506,0.4925,2924.6,2923.9,0.72559411]
[1764079599720,3.54201736,2924.9,2923.9,0.72559411]
[1764079599721,0.6155,2924.9,2923.9,0.74506012]
[1764079599939,0.6155,2924.9,2923.9,1.21789411]
[1764079599940,0.22,2924.8,2923.9,1.21789411]
[1764079600542,0.7125,2924.8,2923.9,0.72559411]
[1764079600742,4.13165294,2924.8,2924.0,3.41997264]
[1764079601051,4.13165294,2924.8,2923.9,0.72559411]
[1764079601052,0.0569,2924.0,2923.9,0.72559411]
[1764079601257,0.0569,2924.0,2923.3,0.72559411]
[1764079601408,0.8355,2924.9,2923.7,0.4923]
[1764079601613,0.4925,2924.8,2923.7,0.4923]
[1764079601911,0.22,2924.7,2923.8,0.01946667]
[1764079602112,0.22,2924.7,2923.7,0.4923]
[1764079602113,0.4925,2924.8,2923.7,0.58666]
[1764079602312,0.22,2924.7,2923.4,0.4923]
[1764079602626,0.4925,2924.6,2923.4,0.4923]
[1764079602942,3.9118641,2924.6,2923.6,0.72559411]
[1764079603147,0.4925,2924.5,2923.6,0.72559411]
[1764079604344,3.91194542,2924.5,2923.7,6.84064712]
[1764079604732,0.4925,2924.5,2923.7,6.84064712]
[1764079604925,0.4925,2924.4,2923.7,3.42032356]
[1764079605331,0.4925,2924.4,2923.1,0.1916]
[1764079605332,0.405504,2924.3,2923.1,0.1916]
[1764079605546,0.205,2923.8,2923.1,0.1916]
[1764079605853,0.205,2923.8,2923.1,0.91719411]
[1764079606161,0.205,2923.8,2923.2,6.86130592]
[1764079606364,0.4891,2924.2,2923.2,10.26272577]
[1764079606531,0.22,2924.1,2923.2,10.75502577]
[1764079606732,0.22,2924.1,2923.2,7.33411718]
[1764079607052,0.4925,2924.0,2923.2,3.42090859]
[1764079607258,0.405504,2923.9,2922.8,6.84275352]
[1764079607458,0.1489,2923.3,2922.8,3.42137676]
[1764079607821,0.6414,2923.3,2922.8,3.42137676]
[1764079608125,0.2011,2922.9,2922.1,3.42219636]
[1764079608328,0.2011,2922.9,2922.1,6.84439272]
[1764079608567,0.2011,2922.9,2922.1,3.42219636]
[1764079608568,0.7105,2922.8,2922.1,3.42219636]
[1764079608870,0.405504,2922.7,2921.8,3.42251286]
[1764079609157,0.0049,2922.2,2921.8,3.42251286]
[1764079609572,0.0049,2922.2,2921.4,0.6819]
[1764079609726,0.7174,2922.2,2921.2,3.42317465]
[1764079609922,0.7174,2922.2,2920.2,0.4923]
[1764079609923,0.0536,2921.3,2920.2,0.4923]
[1764079610139,0.22,2922.2,2920.5,0.4921]
[1764079610140,0.72719425,2922.0,2920.5,0.4921]
[1764079610341,3.88695104,2921.8,2920.6,6.84790796]
[1764079610582,0.4643,2921.8,2920.6,10.27186194]
[1764079610786,0.405504,2921.7,2920.6,6.84790796]
[1764079611285,0.405504,2921.5,2920.6,3.42395398]
[1764079611642,0.4643,2921.6,2920.5,7.34022015]
[1764079611643,0.22,2921.4,2920.5,7.34022015]
[1764079611875,0.22,2921.3,2920.5,7.34022015]
[1764079612578,8.90073065,2922.5,2920.5,7.34022015]
[1764079612579,0.9085644,2922.6,2921.2,0.6983]
[1764079612887,0.6843,2922.5,2921.5,0.4995]
[1764079613837,0.94559411,2922.5,2921.5,0.4995]
[1764079614043,0.94559411,2922.5,2921.5,0.9916]
[1764079614240,0.22,2922.5,2921.5,0.9916]
[1764079614442,1.40989411,2922.5,2921.6,6.84556406]
[1764079614663,4.10605092,2922.5,2921.6,6.84556406]
[1764079614883,0.6843,2922.5,2921.6,6.84556406]
[1764079615669,0.4643,2922.4,2921.6,6.84556406]
[1764079615866,0.405504,2922.3,2921.3,3.42313353]
[1764079616198,0.405504,2922.3,2921.3,6.84626706]
[1764079616400,0.405504,2922.3,2921.3,10.76150059]
[1764079616900,0.22,2922.2,2921.4,0.4921]
[1764079617088,0.405504,2922.1,2921.3,3.4230167]
[1764079617290,0.4643,2922.6,2921.4,0.4921]
[1764079617602,0.22,2922.3,2921.4,0.4921]
[1764079618017,0.145,2922.9,2921.5,0.01953624]
[1764079618220,0.22,2922.8,2922.2,0.199]
[1764079618422,0.145,2922.9,2922.2,0.199]
[1764079618718,0.145,2922.9,2921.6,0.4731]
[1764079618719,0.1498,2922.3,2921.5,0.4731]
[1764079618884,0.4742,2922.8,2921.5,0.4731]
[1764079619085,0.145,2922.9,2921.5,0.4731]
[1764079619086,0.1912,2922.9,2921.5,0.6931]
[1764079619273,0.1912,2922.9,2921.7,0.09436]
[1764079619692,0.1912,2922.9,2921.8,0.4731]
[1764079619906,0.1912,2922.9,2921.9,0.01952227]
[1764079620174,0.4482712,2922.8,2921.4,0.72559411]
[1764079620370,0.405504,2922.8,2921.5,0.4731]
[1764079620678,0.22,2922.7,2921.8,0.72559411]
[1764079621517,0.1912,2922.9,2921.9,0.49262452]
[1764079621669,0.1782,2923.5,2922.8,0.48]
[1764079622084,0.4742,2923.8,2922.8,0.9531]
[1764079622306,0.145,2924.0,2922.9,0.4731]
[1764079622510,0.22,2923.9,2923.0,0.09436]
[1764079622714,0.22,2923.9,2923.1,10.26307686]
[1764079622879,0.145,2924.2,2923.1,10.73617686]
[1764079623076,0.22,2924.0,2923.2,0.4731]
[1764079623705,0.1782,2923.9,2923.2,0.4731]
[1764079624212,0.145,2924.2,2923.2,1.19869411]
[1764079624414,0.22,2924.3,2923.3,0.4731]
[1764079624578,0.22,2924.3,2923.3,0.56746]
[1764079624778,0.4742,2924.2,2923.0,0.4731]
[1764079625273,0.4742,2924.2,2923.0,0.56746]
[1764079625514,0.22,2924.1,2923.1,0.09436]
[1764079625822,0.22,2924.1,2923.0,0.4731]
[1764079626314,0.6942,2924.1,2923.0,0.4731]
[1764079626682,0.6942,2924.1,2923.2,0.72559411]
[1764079626882,0.22,2924.1,2923.2,0.72559411]
[1764079627115,0.22,2924.1,2923.3,0.4731]
[1764079628735,0.22,2924.1,2923.4,3.42067455]
[1764079629039,0.22,2924.1,2923.4,6.8413491]
[1764079629386,0.22,2924.1,2923.4,7.3144491]
[1764079629833,0.22,2924.1,2923.4,10.26202365]
[1764079630005,0.22,2924.1,2923.5,0.4731]
[1764079630527,0.22,2924.1,2923.4,6.8413491]
[1764079630713,0.22,2924.1,2923.3,6.84158314]
[1764079630929,0.4742,2925.0,2924.0,0.48]
[1764079631231,0.17875437,2925.3,2924.3,0.679]
[1764079631232,0.4742,2925.2,2924.3,0.679]
[1764079631405,0.123,2924.8,2923.8,0.09436]
[1764079631600,0.123,2924.8,2923.9,0.4731]
[1764079631908,0.123,2924.8,2923.5,0.199]
[1764079631909,0.5972,2924.8,2923.5,0.199]
[1764079632112,0.04273942,2924.7,2923.5,0.199]
[1764079632291,0.6942,2924.6,2923.5,0.199]
[1764079632685,0.4742,2924.5,2923.5,0.199]
[1764079632927,3.73569964,2924.4,2923.6,3.42044055]
[1764079633091,0.79039479,2924.3,2923.6,3.42044055]
[1764079633428,0.31619479,2924.2,2923.6,3.42044055]
[1764079633603,0.31619479,2924.1,2923.6,3.42044055]
[1764079633920,0.31619479,2924.1,2923.1,1.19869411]
[1764079633921,0.2523,2923.7,2922.6,0.199]
[1764079634092,0.53621312,2923.6,2922.6,3.62057101]
[1764079634295,0.31621312,2923.5,2922.6,6.7466219]
[1764079634615,0.6942,2923.6,2922.3,3.62093929]
[1764079634616,0.72171712,2923.4,2922.5,3.42167108]
[1764079634925,0.72171712,2923.4,2922.0,0.6721]
[1764079634926,0.31621312,2923.3,2922.1,6.84439272]
[1764079635101,0.31621312,2923.2,2922.1,6.84439272]
[1764079635291,0.31621312,2923.1,2922.1,6.84439272]
[1764079635489,0.31621312,2923.0,2922.1,6.84439272]
[1764079635689,0.22,2922.9,2922.1,3.42219636]
[1764079635886,0.22,2922.9,2921.9,3.42243061]
[1764079635887,0.31636352,2922.8,2921.9,3.42243061]
[1764079636120,0.79056352,2922.7,2921.9,3.42243061]
[1764079636351,0.31636352,2922.6,2921.9,3.42243061]
[1764079636622,0.31636352,2922.5,2921.4,0.72559411]
[1764079636822,0.22,2922.4,2921.8,6.84509548]
[1764079637309,0.5742,2922.9,2921.9,0.4731]
[1764079637508,0.22,2922.4,2921.9,0.4731]
[1764079637898,0.6942,2922.4,2921.5,3.42287076]
[1764079638099,0.6942,2922.4,2921.5,6.84576995]
[1764079638294,0.22,2922.4,2921.6,0.4731]
[1764079639222,0.22,2922.4,2921.7,3.42266488]
[1764079639423,0.22,2922.4,2921.7,6.84532976]
[1764079639622,0.22,2922.3,2921.7,10.26799464]
[1764079639933,0.22,2922.4,2921.8,0.4731]
[1764079641056,0.22,2922.4,2921.9,6.84486122]
[1764079641228,0.1,2922.9,2922.3,0.6434]
[1764079641428,0.53668133,2922.8,2922.3,0.6434]
[1764079641629,0.4609,2922.4,2921.9,3.42243061]
[1764079642138,0.8819,2922.4,2921.9,3.42243061]
[1764079642345,0.31680279,2922.3,2921.9,6.84486122]
[1764079642566,0.0042,2922.0,2921.1,3.42332982]
[1764079642733,0.405504,2921.6,2920.7,3.60693675]
[1764079642922,0.4563,2921.7,2920.6,3.42395398]
[1764079642923,0.0011,2921.2,2920.6,3.42395398]
[1764079643121,0.2211,2921.2,2920.6,3.42395398]
[1764079643523,0.2211,2921.2,2920.5,0.1831]
[1764079643524,0.31651404,2921.1,2920.5,0.1831]
[1764079643724,0.31651404,2921.0,2920.5,7.03123244]
[1764079644056,0.2211,2921.2,2920.5,7.03123244]
[1764079644057,0.7177,2921.2,2920.5,3.42406122]
[1764079644234,0.1955,2920.9,2920.4,0.65997817]
[1764079644565,0.3051,2920.5,2920.4,0.65997817]
[1764079644747,0.5251,2920.5,2920.4,0.65997817]
[1764079645136,1.0209,2920.5,2920.4,0.65997817]
[1764079645534,1.426404,2920.5,2920.4,0.65997817]
[1764079645751,4.85047522,2920.5,2920.4,0.65997817]
[1764079645946,1.74239672,2920.5,2920.4,0.65997817]
[1764079646231,1.426404,2920.5,2920.4,0.65997817]
[1764079646428,1.74218521,2920.5,2920.4,0.65997817]
[1764079647056,0.62088121,2920.5,2920.4,0.65997817]
[1764079647257,0.22,2920.5,2920.4,0.65997817]
[1764079647769,0.405504,2920.8,2920.4,4.08416663]
[1764079648065,0.307,2920.5,2920.4,0.65997817]
[1764079648253,0.62243526,2920.5,2920.4,0.65997817]
[1764079648450,1.11633526,2920.5,2920.4,0.65997817]
[1764079648762,1.52183926,2920.5,2920.4,0.65997817]
[1764079648976,1.74183926,2920.5,2920.4,0.65997817]
[1764079649267,1.13109811,2920.2,2919.0,7.03476147]
[1764079649468,0.405504,2920.0,2919.0,7.03476147]
[1764079649629,0.405504,2919.8,2919.0,7.03476147]
[1764079649830,0.4977,2920.1,2919.1,0.4668]
[1764079649831,0.22,2919.7,2919.1,0.4668]
[1764079650270,0.405504,2920.1,2919.1,0.4668]
[1764079650479,0.6932,2920.9,2920.0,0.4603]
[1764079650659,0.5345435,2920.8,2920.0,0.4603]
[1764079650859,0.22,2920.8,2920.0,0.4603]
[1764079651168,0.7177,2920.8,2920.1,3.42454025]
[1764079651345,4.14145448,2920.8,2920.0,3.42462791]
[1764079651545,0.903204,2920.7,2920.0,3.42462791]
[1764079651941,0.405504,2920.5,2920.0,3.42462791]
[1764079652343,0.405504,2920.7,2920.0,6.84928544]
[1764079652857,0.405504,2920.5,2920.0,3.42462791]
[1764079653167,0.405504,2920.7,2919.7,10.27498282]
[1764079653565,0.405504,2920.7,2919.7,10.74178282]
[1764079654061,0.405504,2920.7,2919.8,0.4668]
[1764079654268,0.4977,2921.8,2920.6,0.6434]
[1764079654442,0.4977,2921.4,2920.0,0.1831]
[1764079654642,1.22329411,2921.8,2920.2,0.09436]
[1764079654844,0.31417993,2921.7,2920.1,0.4668]
[1764079655079,0.04278477,2921.6,2920.2,0.09436]
[1764079655261,3.92059919,2921.5,2920.4,0.72559411]
[1764079655575,0.405504,2921.3,2920.4,0.72559411]
[1764079655756,0.22,2921.2,2920.4,0.72559411]
[1764079655963,0.26279063,2921.2,2920.4,0.72559411]
[1764079656165,0.404704,2921.1,2920.3,7.31541144]
[1764079656746,0.404704,2921.1,2920.3,6.84861144]
[1764079657150,0.404704,2921.1,2920.4,0.4668]
[1764079657355,0.4977,2921.6,2920.5,10.27221366]
[1764079657671,0.53444868,2921.5,2920.5,10.27221366]
[1764079657869,0.22,2921.5,2920.6,0.4668]
[1764079658075,0.4977,2921.6,2920.6,1.19239411]
[1764079658260,0.22,2921.6,2920.8,0.09436]
[1764079658661,0.4977,2922.2,2921.5,0.6434]
[1764079658913,0.22,2921.7,2921.5,0.6434]
[1764079659065,0.22,2921.7,2921.5,1.1102]
[1764079659264,0.4977,2922.2,2921.6,3.42278203]
[1764079659470,0.31489631,2922.1,2921.6,3.42278203]
[1764079659667,0.405504,2921.9,2921.2,3.42324609]
[1764079659866,0.4826,2921.7,2921.2,3.42324609]
[1764079660082,0.4956,2921.9,2921.2,6.8464968]
[1764079660286,0.22,2921.8,2921.2,10.73654751]
[1764079660446,0.22,2921.8,2921.2,7.3132968]
[1764079660779,0.22,2921.7,2921.3,0.4668]
[1764079660943,0.22,2921.7,2921.2,6.8464968]
[1764079661538,0.22,2921.7,2921.2,7.3132968]
[1764079661772,0.22,2921.7,2921.2,6.8464968]
[1764079661977,0.22,2921.7,2921.3,0.4668]
[1764079662757,0.405504,2922.2,2921.3,0.4668]
[1764079662992,0.405504,2922.0,2921.3,0.4668]
[1764079663360,0.22,2922.1,2921.3,0.4668]
[1764079663568,0.22,2922.1,2921.4,6.84603272]
[1764079663754,0.7177,2922.1,2921.4,3.42301636]
[1764079663955,0.4826,2921.5,2920.9,3.42360231]
[1764079664284,0.22,2921.5,2920.9,3.42360231]
[1764079664792,0.22,2921.5,2920.9,10.73760693]
[1764079665859,0.22,2921.5,2921.0,0.02035433]
[1764079666055,0.4977,2921.9,2921.0,0.02035433]
[1764079666056,0.219,2921.4,2921.0,0.48715433]
[1764079666418,0.219,2921.4,2921.1,0.1831]
[1764079666583,0.219,2921.4,2921.3,0.4603]
[1764079666894,0.219,2921.4,2921.1,0.1831]
[1764079667196,0.219,2921.6,2921.1,0.1831]
[1764079667894,0.4977,2921.5,2921.2,3.42325071]
[1764079668054,0.4977,2921.5,2921.0,3.42339727]
[1764079668255,0.4977,2921.5,2920.7,3.42383675]
[1764079668463,0.4977,2921.5,2920.7,6.8476735]
[1764079668900,0.002,2921.7,2920.7,6.8476735]
[1764079669065,0.219,2921.4,2920.7,6.8476735]
[1764079669255,0.2617877,2921.4,2920.7,3.42383675]
[1764079669462,0.2617877,2921.4,2920.1,0.22]
[1764079669463,0.5798,2920.8,2920.2,6.84884596]
[1764079669681,0.1189,2920.8,2920.3,0.72559411]
[1764079669957,0.219,2920.7,2920.4,3.42418846]
[1764079670184,0.219,2920.7,2920.4,6.84837692]
[1764079670587,0.6952,2920.7,2920.2,3.42442298]
[1764079670821,0.6952,2920.7,2920.2,6.84884596]
[1764079671394,0.219,2920.7,2920.3,0.4743]
[1764079671834,0.219,2920.7,2920.2,6.84884596]
[1764079672004,0.219,2920.7,2920.1,0.001]
[1764079672005,0.391,2920.6,2920.1,0.001]
[1764079673093,0.405504,2920.6,2920.1,0.1834]
[1764079673715,0.881704,2920.6,2920.1,0.001]
[1764079674286,0.405504,2920.6,2920.1,0.001]
[1764079674529,0.4762,2920.5,2920.1,0.001]
[1764079674929,0.3968,2920.2,2920.1,0.001]
[1764079675129,0.6158,2920.2,2920.1,0.001]
[1764079676186,3.42373216,2920.8,2920.1,0.001]
[1764079676187,0.9085644,2921.2,2920.1,1.1367]
[1764079676390,0.4762,2921.4,2920.4,0.479]
[1764079676588,1.01253048,2921.3,2920.2,6.84884596]
[1764079676818,0.31733048,2921.2,2920.2,10.27326894]
[1764079677124,0.405504,2921.1,2920.2,10.27326894]
[1764079677620,0.4762,2921.0,2920.2,6.84884596]
[1764079677821,0.1846,2920.9,2920.2,6.84884596]
[1764079678029,0.219,2920.8,2920.2,6.84884596]
[1764079678599,0.3868,2920.3,2920.1,0.001]
[1764079678794,0.7026,2920.7,2920.1,0.001]
[1764079678795,0.629304,2920.2,2920.1,0.001]
[1764079679099,0.94655386,2920.2,2920.1,0.001]
[1764079679422,2.16203369,2920.2,2920.1,0.001]
[1764079680103,1.94223369,2920.2,2920.1,0.001]
[1764079680419,2.16145897,2920.2,2920.1,0.001]
[1764079680620,6.31147606,2920.2,2920.1,0.001]
[1764079681925,25.02307136,2920.2,2920.1,0.001]
[1764079682107,15.98613196,2920.2,2920.1,0.001]
[1764079682430,15.65415496,2920.2,2920.1,0.001]
[1764079682644,11.850064,2920.0,2919.9,0.001]
[1764079682812,1.13109811,2919.5,2918.9,0.001]
[1764079682997,0.0078,2919.0,2918.9,0.001]
[1764079683395,0.897804,2919.0,2918.9,0.001]
[1764079683624,1.21436597,2919.0,2918.9,0.001]
[1764079684398,4.32363476,2919.0,2918.9,0.001]
[1764079684634,4.85873995,2919.0,2918.9,0.001]
[1764079684938,11.26665469,2919.0,2918.9,0.001]
[1764079685234,6.31262824,2919.0,2918.9,0.001]
[1764079685745,0.405504,2918.7,2917.8,0.001]
[1764079685902,0.951104,2917.9,2917.8,0.001]
[1764079686103,1.170104,2917.9,2917.8,0.001]
[1764079686410,1.470404,2917.9,2917.8,0.001]
[1764079686609,4.89752624,2917.9,2917.8,0.001]
[1764079686810,0.6691,2918.6,2917.8,0.4515]
[1764079687013,1.35109811,2918.5,2917.8,0.4515]
[1764079687532,0.178,2917.9,2917.8,0.001]
[1764079687725,0.398,2917.9,2917.8,0.001]
[1764079687930,1.285004,2917.9,2917.8,0.001]